[Event "Titled Tuesday Blitz October 26 2021"]
[White "Nakamura, Hikaru"]
[Black "Garriga Cazorla, Pere"]
[WhiteFideId "2016192"]
[BlackFideId "32011601"]
[WhiteElo "2884"]
[BlackElo "2458"]
[Result "1-0"]
[Round "03"]
[TimeControl "180+1"]
[Date "2021.10.26"]
[WhiteClock "0:01:43"]
[BlackClock "0:00:23"]

1. Nf3 {[%clk 0:03:00]}  c5 {[%clk 0:02:40]} 2. e4 {[%clk 0:03:00]}  Nc6 {[%clk 0:02:40]} 3. c3 {[%clk 0:02:59]}  Nf6 {[%clk 0:02:39]} 4. Bd3 {[%clk 0:02:59]}  d5 {[%clk 0:02:34]} 5. e5 {[%clk 0:02:59]}  Ng4 {[%clk 0:02:34]} 6. Bb5 {[%clk 0:02:59]}  Qb6 {[%clk 0:02:33]} 7. Qe2 {[%clk 0:02:58]}  a6 {[%clk 0:02:31]} 8. Bxc6+ {[%clk 0:02:52]}  Qxc6 {[%clk 0:02:32]} 9. d4 {[%clk 0:02:52]}  Nh6 {[%clk 0:02:31]} 10. h3 {[%clk 0:02:50]}  Nf5 {[%clk 0:02:22]} 11. g4 {[%clk 0:02:48]}  Nh6 {[%clk 0:02:21]} 12. Nbd2 {[%clk 0:02:43]}  Ng8 {[%clk 0:02:21]} 13. dxc5 {[%clk 0:02:39]}  h5 {[%clk 0:02:16]} 14. g5 {[%clk 0:02:36]}  Qxc5 {[%clk 0:02:16]} 15. g6 {[%clk 0:02:34]}  fxg6 {[%clk 0:02:06]} 16. e6 {[%clk 0:02:34]}  h4 {[%clk 0:01:52]} 17. Nb3 {[%clk 0:02:32]}  Qd6 {[%clk 0:01:50]} 18. Nbd4 {[%clk 0:02:32]}  Nf6 {[%clk 0:01:43]} 19. Ng5 {[%clk 0:02:26]}  Rh5 {[%clk 0:01:42]} 20. Rg1 {[%clk 0:02:22]}  b6 {[%clk 0:01:03]} 21. f3 {[%clk 0:02:13]}  Bb7 {[%clk 0:01:01]} 22. a4 {[%clk 0:02:13]}  Qc7 {[%clk 0:00:51]} 23. Be3 {[%clk 0:02:09]}  O-O-O {[%clk 0:00:51]} 24. O-O-O {[%clk 0:02:01]}  Kb8 {[%clk 0:00:50]} 25. Kb1 {[%clk 0:02:01]}  Ka8 {[%clk 0:00:50]} 26. Rc1 {[%clk 0:02:01]}  Rc8 {[%clk 0:00:50]} 27. b3 {[%clk 0:02:01]}  Qd6 {[%clk 0:00:49]} 28. Kb2 {[%clk 0:02:00]}  Qc7 {[%clk 0:00:43]} 29. Qd2 {[%clk 0:01:59]}  Ne8 {[%clk 0:00:40]} 30. c4 {[%clk 0:01:52]}  dxc4 {[%clk 0:00:36]} 31. Rxc4 {[%clk 0:01:52]}  Qb8 {[%clk 0:00:37]} 32. Rxc8 {[%clk 0:01:51]}  Qxc8 {[%clk 0:00:38]} 33. Rc1 {[%clk 0:01:51]}  Qd8 {[%clk 0:00:36]} 34. Qb4 {[%clk 0:01:49]}  Nd6 {[%clk 0:00:31]} 35. Nc6 {[%clk 0:01:44]}  Qc8 {[%clk 0:00:23]} 36. Qxb6 {[%clk 0:01:43]} 1-0


[Site "https://www.chess.com"]

[Event "Titled Tuesday Blitz October 26 2021"]
[White "Obregon, Andres Carlos"]
[Black "Stoyanov, Tsvetan"]
[WhiteFideId "111724"]
[BlackFideId "2917173"]
[WhiteElo "2572"]
[BlackElo "2191"]
[Result "1-0"]
[Round "03"]
[TimeControl "180+1"]
[Date "2021.10.26"]
[WhiteClock "0:00:29"]
[BlackClock "0:00:14"]

1. Nf3 {[%clk 0:03:00]}  c5 {[%clk 0:02:59]} 2. g3 {[%clk 0:02:57]}  Nc6 {[%clk 0:02:58]} 3. c4 {[%clk 0:02:54]}  g6 {[%clk 0:02:58]} 4. Bg2 {[%clk 0:02:51]}  Bg7 {[%clk 0:02:58]} 5. O-O {[%clk 0:02:48]}  e6 {[%clk 0:02:58]} 6. Nc3 {[%clk 0:02:44]}  Nge7 {[%clk 0:02:59]} 7. d4 {[%clk 0:02:39]}  cxd4 {[%clk 0:02:54]} 8. Nb5 {[%clk 0:02:36]}  O-O {[%clk 0:02:53]} 9. Nfxd4 {[%clk 0:02:32]}  Nxd4 {[%clk 0:02:42]} 10. Nxd4 {[%clk 0:02:30]}  d5 {[%clk 0:02:43]} 11. cxd5 {[%clk 0:02:03]}  exd5 {[%clk 0:02:44]} 12. Bg5 {[%clk 0:01:54]}  h6 {[%clk 0:02:32]} 13. Be3 {[%clk 0:01:53]}  Nf5 {[%clk 0:01:57]} 14. Nxf5 {[%clk 0:01:51]}  Bxf5 {[%clk 0:01:58]} 15. Bd4 {[%clk 0:01:51]}  Be4 {[%clk 0:01:43]} 16. Bxg7 {[%clk 0:01:49]}  Kxg7 {[%clk 0:01:42]} 17. f3 {[%clk 0:01:46]}  Bf5 {[%clk 0:01:41]} 18. Qd4+ {[%clk 0:01:44]}  Qf6 {[%clk 0:01:38]} 19. Rfd1 {[%clk 0:01:40]}  Rfe8 {[%clk 0:01:28]} 20. Kf2 {[%clk 0:01:37]}  Rac8 {[%clk 0:01:23]} 21. Qxf6+ {[%clk 0:01:30]}  Kxf6 {[%clk 0:01:24]} 22. Rd2 {[%clk 0:01:29]}  h5 {[%clk 0:01:15]} 23. Rad1 {[%clk 0:01:22]}  Be6 {[%clk 0:01:08]} 24. f4 {[%clk 0:01:19]}  d4 {[%clk 0:01:00]} 25. b3 {[%clk 0:01:16]}  Bg4 {[%clk 0:00:43]} 26. Bxb7 {[%clk 0:01:13]}  Rc7 {[%clk 0:00:42]} 27. Bg2 {[%clk 0:01:13]}  Rce7 {[%clk 0:00:41]} 28. Bf1 {[%clk 0:01:13]}  d3 {[%clk 0:00:37]} 29. Rxd3 {[%clk 0:01:09]}  Bxe2 {[%clk 0:00:37]} 30. Rd6+ {[%clk 0:01:05]}  Kg7 {[%clk 0:00:36]} 31. R1d2 {[%clk 0:01:05]}  Bxf1 {[%clk 0:00:36]} 32. Kxf1 {[%clk 0:01:06]}  Re1+ {[%clk 0:00:35]} 33. Kg2 {[%clk 0:01:05]}  R8e2+ {[%clk 0:00:32]} 34. Kh3 {[%clk 0:01:05]}  Rxd2 {[%clk 0:00:31]} 35. Rxd2 {[%clk 0:01:04]}  Kf6 {[%clk 0:00:28]} 36. Rd6+ {[%clk 0:00:58]}  Kg7 {[%clk 0:00:28]} 37. Ra6 {[%clk 0:00:58]}  Re7 {[%clk 0:00:28]} 38. b4 {[%clk 0:00:56]}  Rb7 {[%clk 0:00:27]} 39. a3 {[%clk 0:00:56]}  Kf8 {[%clk 0:00:28]} 40. Kh4 {[%clk 0:00:55]}  Ke7 {[%clk 0:00:28]} 41. Kg5 {[%clk 0:00:53]}  Rb5+ {[%clk 0:00:28]} 42. Kh6 {[%clk 0:00:52]}  Rb7 {[%clk 0:00:29]} 43. Kg7 {[%clk 0:00:52]}  Ke8 {[%clk 0:00:28]} 44. h3 {[%clk 0:00:50]}  Ke7 {[%clk 0:00:28]} 45. g4 {[%clk 0:00:50]}  hxg4 {[%clk 0:00:28]} 46. hxg4 {[%clk 0:00:50]}  Ke8 {[%clk 0:00:29]} 47. Kf6 {[%clk 0:00:44]}  Rc7 {[%clk 0:00:26]} 48. f5 {[%clk 0:00:41]}  gxf5 {[%clk 0:00:26]} 49. gxf5 {[%clk 0:00:41]}  Rb7 {[%clk 0:00:25]} 50. Kg7 {[%clk 0:00:40]}  Rc7 {[%clk 0:00:24]} 51. a4 {[%clk 0:00:38]}  Rc4 {[%clk 0:00:22]} 52. b5 {[%clk 0:00:34]}  Rc7 {[%clk 0:00:22]} 53. f6 {[%clk 0:00:31]}  Kd8 {[%clk 0:00:17]} 54. Kf8 {[%clk 0:00:30]}  Kc8 {[%clk 0:00:14]} 55. Rc6 {[%clk 0:00:29]} 1-0


[Site "https://www.chess.com"]

[Event "Titled Tuesday Blitz October 26 2021"]
[White "Petesch, Gabriel"]
[Black "Grigorjev, Iljya"]
[WhiteFideId "2032465"]
[BlackFideId "24159565"]
[WhiteElo "2374"]
[BlackElo "2124"]
[Result "1/2-1/2"]
[Round "03"]
[TimeControl "180+1"]
[Date "2021.10.26"]
[WhiteClock "0:00:49"]
[BlackClock "0:00:17"]

1. Nf3 {[%clk 0:03:00]}  Nf6 {[%clk 0:03:00]} 2. b3 {[%clk 0:02:51]}  g6 {[%clk 0:02:53]} 3. Bb2 {[%clk 0:02:51]}  Bg7 {[%clk 0:02:54]} 4. g3 {[%clk 0:02:49]}  O-O {[%clk 0:02:54]} 5. Bg2 {[%clk 0:02:49]}  c5 {[%clk 0:02:47]} 6. c4 {[%clk 0:02:45]}  e6 {[%clk 0:02:34]} 7. O-O {[%clk 0:02:43]}  Nc6 {[%clk 0:02:35]} 8. d4 {[%clk 0:02:37]}  cxd4 {[%clk 0:02:35]} 9. Nxd4 {[%clk 0:02:35]}  d5 {[%clk 0:02:35]} 10. cxd5 {[%clk 0:02:31]}  Nxd5 {[%clk 0:02:22]} 11. Nxc6 {[%clk 0:02:29]}  bxc6 {[%clk 0:02:22]} 12. Bxg7 {[%clk 0:02:29]}  Kxg7 {[%clk 0:02:23]} 13. Qc2 {[%clk 0:02:24]}  Ba6 {[%clk 0:02:07]} 14. Nc3 {[%clk 0:02:17]}  Rc8 {[%clk 0:01:47]} 15. Rac1 {[%clk 0:02:14]}  Nxc3 {[%clk 0:01:36]} 16. Qxc3+ {[%clk 0:02:14]}  Qf6 {[%clk 0:01:37]} 17. Qxf6+ {[%clk 0:01:56]}  Kxf6 {[%clk 0:01:37]} 18. Rc2 {[%clk 0:01:56]}  c5 {[%clk 0:01:33]} 19. Rfc1 {[%clk 0:01:56]}  Rfd8 {[%clk 0:01:27]} 20. e3 {[%clk 0:01:50]}  Rc7 {[%clk 0:01:16]} 21. Bf1 {[%clk 0:01:49]}  Bxf1 {[%clk 0:01:03]} 22. Kxf1 {[%clk 0:01:49]}  Rd5 {[%clk 0:01:04]} 23. h4 {[%clk 0:01:48]}  h5 {[%clk 0:01:03]} 24. Ke2 {[%clk 0:01:48]}  Ke7 {[%clk 0:01:00]} 25. f4 {[%clk 0:01:20]}  f5 {[%clk 0:00:49]} 26. Rc4 {[%clk 0:01:10]}  e5 {[%clk 0:00:46]} 27. fxe5 {[%clk 0:01:00]}  Rxe5 {[%clk 0:00:46]} 28. Kf3 {[%clk 0:01:01]}  Kf6 {[%clk 0:00:35]} 29. R1c3 {[%clk 0:00:56]}  a5 {[%clk 0:00:20]} 30. Ra4 {[%clk 0:00:56]}  Ra7 {[%clk 0:00:21]} 31. Rac4 {[%clk 0:00:55]}  Rc7 {[%clk 0:00:21]} 32. Rd3 {[%clk 0:00:55]}  Rce7 {[%clk 0:00:19]} 33. Rd6+ {[%clk 0:00:52]}  R7e6 {[%clk 0:00:17]} 34. Rd3 {[%clk 0:00:51]}  Re7 {[%clk 0:00:17]} 35. Rdc3 {[%clk 0:00:49]}  Rc7 {[%clk 0:00:17]} 1/2-1/2


[Site "https://www.chess.com"]

[Event "Titled Tuesday Blitz October 26 2021"]
[White "Sadhwani, Raunak"]
[Black "Papasimakopoulos, Alexandros"]
[WhiteFideId "35093487"]
[BlackFideId "4244125"]
[WhiteElo "2517"]
[BlackElo "2352"]
[Result "1/2-1/2"]
[Round "03"]
[TimeControl "180+1"]
[Date "2021.10.26"]
[WhiteClock "0:00:04"]
[BlackClock "0:00:12"]

1. Nf3 {[%clk 0:03:00]}  f5 {[%clk 0:02:56]} 2. c4 {[%clk 0:02:59]}  Nf6 {[%clk 0:02:56]} 3. d4 {[%clk 0:02:57]}  d6 {[%clk 0:02:56]} 4. e3 {[%clk 0:02:56]}  g6 {[%clk 0:02:56]} 5. Be2 {[%clk 0:02:57]}  Bg7 {[%clk 0:02:57]} 6. b4 {[%clk 0:02:56]}  O-O {[%clk 0:02:56]} 7. Bb2 {[%clk 0:02:56]}  Nbd7 {[%clk 0:02:55]} 8. O-O {[%clk 0:02:54]}  Ne4 {[%clk 0:02:55]} 9. Nbd2 {[%clk 0:02:50]}  e6 {[%clk 0:02:51]} 10. Qc2 {[%clk 0:02:47]}  d5 {[%clk 0:02:50]} 11. c5 {[%clk 0:02:45]}  Ndf6 {[%clk 0:02:45]} 12. b5 {[%clk 0:02:37]}  c6 {[%clk 0:02:35]} 13. a4 {[%clk 0:02:34]}  Nxd2 {[%clk 0:02:33]} 14. Qxd2 {[%clk 0:02:34]}  Ne4 {[%clk 0:02:33]} 15. Qc2 {[%clk 0:02:35]}  g5 {[%clk 0:02:24]} 16. a5 {[%clk 0:02:32]}  a6 {[%clk 0:02:24]} 17. bxc6 {[%clk 0:02:30]}  bxc6 {[%clk 0:02:25]} 18. Rfb1 {[%clk 0:02:24]}  h5 {[%clk 0:02:15]} 19. Ne5 {[%clk 0:02:24]}  Bxe5 {[%clk 0:02:12]} 20. dxe5 {[%clk 0:02:25]}  g4 {[%clk 0:02:09]} 21. Bd4 {[%clk 0:02:25]}  h4 {[%clk 0:02:04]} 22. Bd3 {[%clk 0:02:04]}  Rf7 {[%clk 0:01:57]} 23. f3 {[%clk 0:01:41]}  gxf3 {[%clk 0:01:48]} 24. gxf3 {[%clk 0:01:42]}  Rg7+ {[%clk 0:01:47]} 25. Kh1 {[%clk 0:01:42]}  Ng5 {[%clk 0:01:48]} 26. Qe2 {[%clk 0:01:38]}  Raa7 {[%clk 0:01:37]} 27. Rg1 {[%clk 0:01:37]}  Qe8 {[%clk 0:01:16]} 28. Rab1 {[%clk 0:01:32]}  Kh7 {[%clk 0:01:09]} 29. Rb8 {[%clk 0:01:24]}  Rac7 {[%clk 0:01:09]} 30. e4 {[%clk 0:00:49]}  dxe4 {[%clk 0:00:48]} 31. fxe4 {[%clk 0:00:50]}  f4 {[%clk 0:00:48]} 32. Qg4 {[%clk 0:00:42]}  Qg6 {[%clk 0:00:42]} 33. Qxf4 {[%clk 0:00:28]}  Qh5 {[%clk 0:00:36]} 34. Qg4 {[%clk 0:00:18]}  Qxg4 {[%clk 0:00:27]} 35. Rxg4 {[%clk 0:00:19]}  Rgd7 {[%clk 0:00:26]} 36. Rxg5 {[%clk 0:00:14]}  Rxd4 {[%clk 0:00:26]} 37. Bf1 {[%clk 0:00:12]}  Rd1 {[%clk 0:00:21]} 38. Kg1 {[%clk 0:00:07]}  Rf7 {[%clk 0:00:20]} 39. Kg2 {[%clk 0:00:03]}  Rdxf1 {[%clk 0:00:16]} 40. Rxc8 {[%clk 0:00:03]}  R1f3 {[%clk 0:00:17]} 41. Rh5+ {[%clk 0:00:02]}  Kg6 {[%clk 0:00:16]} 42. Rxh4 {[%clk 0:00:01]}  Rf2+ {[%clk 0:00:17]} 43. Kg1 {[%clk 0:00:02]}  Rf1+ {[%clk 0:00:17]} 44. Kg2 {[%clk 0:00:02]}  R7f2+ {[%clk 0:00:17]} 45. Kg3 {[%clk 0:00:03]}  Rf3+ {[%clk 0:00:15]} 46. Kg2 {[%clk 0:00:03]}  Kg5 {[%clk 0:00:13]} 47. Rhh8 {[%clk 0:00:02]}  R3f2+ {[%clk 0:00:12]} 48. Kg3 {[%clk 0:00:03]}  Rf3+ {[%clk 0:00:12]} 49. Kg2 {[%clk 0:00:03]}  R1f2+ {[%clk 0:00:12]} 50. Kg1 {[%clk 0:00:04]}  Rf1+ {[%clk 0:00:12]} 51. Kg2 {[%clk 0:00:04]} 1/2-1/2


[Site "https://www.chess.com"]

[Event "Titled Tuesday Blitz October 26 2021"]
[White "Shimelkov, Vasiliy"]
[Black "Sviridov, Valery"]
[WhiteFideId "13701630"]
[BlackFideId "4120680"]
[WhiteElo "2073"]
[BlackElo "2454"]
[Result "0-1"]
[Round "03"]
[TimeControl "180+1"]
[Date "2021.10.26"]
[WhiteClock "0:00:32"]
[BlackClock "0:01:54"]

1. d4 {[%clk 0:03:00]}  g6 {[%clk 0:02:59]} 2. c4 {[%clk 0:03:00]}  Bg7 {[%clk 0:02:59]} 3. Nf3 {[%clk 0:03:00]}  d6 {[%clk 0:03:00]} 4. Nc3 {[%clk 0:02:59]}  e5 {[%clk 0:03:00]} 5. e4 {[%clk 0:02:59]}  exd4 {[%clk 0:03:00]} 6. Nxd4 {[%clk 0:02:59]}  Nc6 {[%clk 0:03:01]} 7. Nc2 {[%clk 0:02:57]}  Nge7 {[%clk 0:02:59]} 8. Be2 {[%clk 0:02:54]}  O-O {[%clk 0:02:59]} 9. O-O {[%clk 0:02:54]}  f5 {[%clk 0:02:59]} 10. Bg5 {[%clk 0:02:50]}  h6 {[%clk 0:02:59]} 11. Bxe7 {[%clk 0:02:50]}  Qxe7 {[%clk 0:03:00]} 12. Nd5 {[%clk 0:02:50]}  Qf7 {[%clk 0:03:00]} 13. exf5 {[%clk 0:02:44]}  Bxf5 {[%clk 0:03:01]} 14. Nce3 {[%clk 0:02:33]}  Be6 {[%clk 0:02:57]} 15. Rb1 {[%clk 0:02:25]}  Rae8 {[%clk 0:02:55]} 16. Bd3 {[%clk 0:02:21]}  Ne5 {[%clk 0:02:53]} 17. b3 {[%clk 0:02:19]}  Nxd3 {[%clk 0:02:52]} 18. Qxd3 {[%clk 0:02:18]}  c6 {[%clk 0:02:50]} 19. Nc3 {[%clk 0:02:16]}  Rd8 {[%clk 0:02:50]} 20. Ne4 {[%clk 0:02:09]}  d5 {[%clk 0:02:41]} 21. cxd5 {[%clk 0:02:09]}  cxd5 {[%clk 0:02:42]} 22. Nc5 {[%clk 0:02:05]}  Bc8 {[%clk 0:02:42]} 23. b4 {[%clk 0:02:04]}  d4 {[%clk 0:02:39]} 24. Nc2 {[%clk 0:01:54]}  Bf5 {[%clk 0:02:37]} 25. Ne4 {[%clk 0:01:54]}  Rc8 {[%clk 0:02:36]} 26. Rb3 {[%clk 0:01:44]}  Qc4 {[%clk 0:02:09]} 27. Qxc4+ {[%clk 0:01:22]}  Rxc4 {[%clk 0:02:10]} 28. Na3 {[%clk 0:01:22]}  Rc7 {[%clk 0:02:08]} 29. Nc5 {[%clk 0:01:19]}  b6 {[%clk 0:02:06]} 30. Nd3 {[%clk 0:01:17]}  Rc3 {[%clk 0:02:06]} 31. Rxc3 {[%clk 0:01:14]}  dxc3 {[%clk 0:02:07]} 32. Nc1 {[%clk 0:01:13]}  c2 {[%clk 0:02:06]} 33. h3 {[%clk 0:01:10]}  Rc8 {[%clk 0:02:05]} 34. Nb5 {[%clk 0:01:04]}  Bb2 {[%clk 0:01:57]} 35. Kh2 {[%clk 0:00:33]}  a6 {[%clk 0:01:55]} 36. Nd6 {[%clk 0:00:32]}  Be5+ {[%clk 0:01:54]} 0-1


[Site "https://www.chess.com"]

[Event "Titled Tuesday Blitz October 26 2021"]
[White "Trost, Edvin"]
[Black "DieHardCuban"]
[WhiteFideId "1729519"]
[WhiteElo "2026"]
[BlackElo "2434"]
[Result "1-0"]
[Round "03"]
[TimeControl "180+1"]
[Date "2021.10.26"]
[WhiteClock "0:01:13"]
[BlackClock "0:00:26"]

1. e4 {[%clk 0:03:00]}  c6 {[%clk 0:02:59]} 2. d4 {[%clk 0:02:56]}  d5 {[%clk 0:02:59]} 3. Nc3 {[%clk 0:02:57]}  dxe4 {[%clk 0:02:59]} 4. Nxe4 {[%clk 0:02:58]}  Bf5 {[%clk 0:02:59]} 5. Ng3 {[%clk 0:02:56]}  Bg6 {[%clk 0:02:59]} 6. h4 {[%clk 0:02:57]}  h6 {[%clk 0:02:59]} 7. Nf3 {[%clk 0:02:57]}  Nd7 {[%clk 0:02:58]} 8. h5 {[%clk 0:02:57]}  Bh7 {[%clk 0:02:58]} 9. Bd3 {[%clk 0:02:58]}  Bxd3 {[%clk 0:02:58]} 10. Qxd3 {[%clk 0:02:59]}  e6 {[%clk 0:02:58]} 11. Bd2 {[%clk 0:02:58]}  Qc7 {[%clk 0:02:57]} 12. O-O-O {[%clk 0:02:58]}  Ngf6 {[%clk 0:02:58]} 13. Kb1 {[%clk 0:02:57]}  Be7 {[%clk 0:02:46]} 14. Rhe1 {[%clk 0:02:55]}  O-O-O {[%clk 0:02:45]} 15. Nf5 {[%clk 0:02:48]}  Bf8 {[%clk 0:02:37]} 16. Ng3 {[%clk 0:02:45]}  a6 {[%clk 0:02:30]} 17. Qe2 {[%clk 0:02:40]}  Bd6 {[%clk 0:02:18]} 18. Ne5 {[%clk 0:02:39]}  Rhf8 {[%clk 0:02:13]} 19. Bc1 {[%clk 0:02:05]}  c5 {[%clk 0:01:40]} 20. Nxd7 {[%clk 0:01:53]}  Rxd7 {[%clk 0:01:41]} 21. Ne4 {[%clk 0:01:51]}  Nxe4 {[%clk 0:01:30]} 22. Qxe4 {[%clk 0:01:52]}  Rfd8 {[%clk 0:01:29]} 23. d5 {[%clk 0:01:49]}  exd5 {[%clk 0:01:02]} 24. Qxd5 {[%clk 0:01:50]}  Bf4 {[%clk 0:00:53]} 25. Qxd7+ {[%clk 0:01:34]}  Rxd7 {[%clk 0:00:25]} 26. Re8+ {[%clk 0:01:11]}  Qd8 {[%clk 0:00:19]} 27. Rxd8+ {[%clk 0:01:09]}  Kxd8 {[%clk 0:00:20]} 28. Rxd7+ {[%clk 0:01:10]}  Kxd7 {[%clk 0:00:20]} 29. Bxf4 {[%clk 0:01:11]}  Ke6 {[%clk 0:00:20]} 30. Be3 {[%clk 0:01:08]}  Kf5 {[%clk 0:00:21]} 31. Bxc5 {[%clk 0:01:07]}  Kg5 {[%clk 0:00:21]} 32. Bf8 {[%clk 0:01:07]}  Kf6 {[%clk 0:00:21]} 33. Kc1 {[%clk 0:01:00]}  g6 {[%clk 0:00:21]} 34. hxg6 {[%clk 0:01:00]}  Kxg6 {[%clk 0:00:22]} 35. Bc5 {[%clk 0:01:00]}  h5 {[%clk 0:00:23]} 36. Be3 {[%clk 0:01:01]}  Kf5 {[%clk 0:00:23]} 37. Kd2 {[%clk 0:01:01]}  h4 {[%clk 0:00:24]} 38. Ke2 {[%clk 0:01:01]}  Kg4 {[%clk 0:00:24]} 39. f3+ {[%clk 0:01:00]}  Kh5 {[%clk 0:00:24]} 40. Kf2 {[%clk 0:01:01]}  f5 {[%clk 0:00:24]} 41. g3 {[%clk 0:01:01]}  b5 {[%clk 0:00:24]} 42. gxh4 {[%clk 0:01:01]}  Kxh4 {[%clk 0:00:25]} 43. b3 {[%clk 0:01:01]}  Kh3 {[%clk 0:00:26]} 44. c4 {[%clk 0:01:02]}  bxc4 {[%clk 0:00:25]} 45. bxc4 {[%clk 0:01:03]}  Kh4 {[%clk 0:00:26]} 46. f4 {[%clk 0:01:04]}  Kg4 {[%clk 0:00:26]} 47. c5 {[%clk 0:01:05]}  Kh3 {[%clk 0:00:26]} 48. c6 {[%clk 0:01:05]}  Kg4 {[%clk 0:00:27]} 49. c7 {[%clk 0:01:06]}  Kh5 {[%clk 0:00:26]} 50. c8=Q {[%clk 0:01:07]}  Kg6 {[%clk 0:00:27]} 51. Qg8+ {[%clk 0:01:08]}  Kf6 {[%clk 0:00:28]} 52. Bd4+ {[%clk 0:01:08]}  Ke7 {[%clk 0:00:29]} 53. Bc5+ {[%clk 0:01:07]}  Kd7 {[%clk 0:00:29]} 54. Qd5+ {[%clk 0:01:07]}  Ke8 {[%clk 0:00:27]} 55. Qd6 {[%clk 0:01:08]}  Kf7 {[%clk 0:00:26]} 56. Qe7+ {[%clk 0:01:09]}  Kg6 {[%clk 0:00:26]} 57. Bd4 {[%clk 0:01:10]}  Kh5 {[%clk 0:00:26]} 58. Qg7 {[%clk 0:01:11]}  Kh4 {[%clk 0:00:26]} 59. Qg5+ {[%clk 0:01:12]}  Kh3 {[%clk 0:00:26]} 60. Qg3# {[%clk 0:01:13]} 1-0


[Site "https://www.chess.com"]

[Event "Titled Tuesday Blitz October 26 2021"]
[White "Wagh Suyog"]
[Black "Federzoni, Enzo"]
[WhiteFideId "25071688"]
[BlackFideId "2173301"]
[WhiteElo "2219"]
[BlackElo "1956"]
[Result "1-0"]
[Round "03"]
[TimeControl "180+1"]
[Date "2021.10.26"]
[WhiteClock "0:00:08"]
[BlackClock "0:00:06"]

1. b3 {[%clk 0:03:00]}  Nf6 {[%clk 0:02:59]} 2. Bb2 {[%clk 0:03:01]}  g6 {[%clk 0:03:00]} 3. Bxf6 {[%clk 0:03:00]}  exf6 {[%clk 0:03:01]} 4. c4 {[%clk 0:03:01]}  d5 {[%clk 0:03:01]} 5. cxd5 {[%clk 0:02:59]}  Qxd5 {[%clk 0:03:02]} 6. Nc3 {[%clk 0:03:00]}  Qa5 {[%clk 0:03:02]} 7. Nf3 {[%clk 0:02:59]}  Ba3 {[%clk 0:03:02]} 8. Qc2 {[%clk 0:02:56]}  Nc6 {[%clk 0:02:59]} 9. e3 {[%clk 0:02:45]}  Bf5 {[%clk 0:02:58]} 10. e4 {[%clk 0:02:43]}  Bg4 {[%clk 0:02:57]} 11. Bb5 {[%clk 0:02:41]}  Bxf3 {[%clk 0:02:56]} 12. gxf3 {[%clk 0:02:41]}  O-O {[%clk 0:02:54]} 13. Bxc6 {[%clk 0:02:35]}  bxc6 {[%clk 0:02:55]} 14. h4 {[%clk 0:02:14]}  Rad8 {[%clk 0:02:49]} 15. h5 {[%clk 0:02:13]}  Rd7 {[%clk 0:02:42]} 16. hxg6 {[%clk 0:02:12]}  fxg6 {[%clk 0:02:42]} 17. Rd1 {[%clk 0:02:05]}  Rfd8 {[%clk 0:02:40]} 18. Nb1 {[%clk 0:02:05]}  Bb4 {[%clk 0:02:39]} 19. Ke2 {[%clk 0:01:44]}  Kg7 {[%clk 0:02:37]} 20. f4 {[%clk 0:01:31]}  Rd4 {[%clk 0:02:21]} 21. f3 {[%clk 0:01:30]}  Qb6 {[%clk 0:02:11]} 22. d3 {[%clk 0:01:25]}  R4d6 {[%clk 0:02:01]} 23. a3 {[%clk 0:01:14]}  Bc5 {[%clk 0:01:57]} 24. Nd2 {[%clk 0:01:13]}  R6d7 {[%clk 0:01:45]} 25. Nc4 {[%clk 0:01:12]}  Qb5 {[%clk 0:01:38]} 26. f5 {[%clk 0:01:11]}  g5 {[%clk 0:01:35]} 27. f4 {[%clk 0:01:08]}  h6 {[%clk 0:01:34]} 28. fxg5 {[%clk 0:01:07]}  hxg5 {[%clk 0:01:35]} 29. e5 {[%clk 0:01:05]}  Bd4 {[%clk 0:01:23]} 30. Rh3 {[%clk 0:00:35]}  Rh8 {[%clk 0:01:20]} 31. Rxh8 {[%clk 0:00:32]}  Kxh8 {[%clk 0:01:20]} 32. Rh1+ {[%clk 0:00:32]}  Kg7 {[%clk 0:01:21]} 33. Kd1 {[%clk 0:00:32]}  Bxe5 {[%clk 0:01:16]} 34. Rh3 {[%clk 0:00:26]}  Qd5 {[%clk 0:01:14]} 35. Qe2 {[%clk 0:00:22]}  Qf7 {[%clk 0:00:32]} 36. Nxe5 {[%clk 0:00:15]}  Qxb3+ {[%clk 0:00:32]} 37. Ke1 {[%clk 0:00:15]}  Qc3+ {[%clk 0:00:32]} 38. Kf1 {[%clk 0:00:15]}  Qxe5 {[%clk 0:00:23]} 39. Qh5 {[%clk 0:00:14]}  Qf4+ {[%clk 0:00:14]} 40. Rf3 {[%clk 0:00:12]}  Qc1+ {[%clk 0:00:10]} 41. Kg2 {[%clk 0:00:12]}  Kg8 {[%clk 0:00:06]} 42. Qe8+ {[%clk 0:00:08]} 1-0


[Site "https://www.chess.com"]

[Event "Titled Tuesday Blitz October 26 2021"]
[White "Weichhold, Pawel"]
[Black "Mamedyarov, Shakhriyar"]
[WhiteFideId "1139703"]
[BlackFideId "13401319"]
[WhiteElo "2309"]
[BlackElo "2754"]
[Result "0-1"]
[Round "03"]
[TimeControl "180+1"]
[Date "2021.10.26"]
[WhiteClock "0:00:07"]
[BlackClock "0:01:34"]

1. e4 {[%clk 0:02:59]}  c5 {[%clk 0:02:58]} 2. Nf3 {[%clk 0:02:59]}  e6 {[%clk 0:02:58]} 3. d4 {[%clk 0:02:58]}  cxd4 {[%clk 0:02:59]} 4. Nxd4 {[%clk 0:02:58]}  Nf6 {[%clk 0:02:59]} 5. Nc3 {[%clk 0:02:56]}  Nc6 {[%clk 0:03:00]} 6. Ndb5 {[%clk 0:02:55]}  d6 {[%clk 0:03:00]} 7. Bf4 {[%clk 0:02:56]}  e5 {[%clk 0:03:00]} 8. Bg5 {[%clk 0:02:56]}  a6 {[%clk 0:02:59]} 9. Na3 {[%clk 0:02:56]}  Be6 {[%clk 0:03:00]} 10. Nc4 {[%clk 0:02:50]}  Rb8 {[%clk 0:03:00]} 11. Ne3 {[%clk 0:02:49]}  Be7 {[%clk 0:02:57]} 12. Bxf6 {[%clk 0:02:43]}  Bxf6 {[%clk 0:02:57]} 13. h4 {[%clk 0:02:34]}  Bxh4 {[%clk 0:02:51]} 14. Ncd5 {[%clk 0:02:31]}  Bg5 {[%clk 0:02:50]} 15. c3 {[%clk 0:02:24]}  Ne7 {[%clk 0:02:30]} 16. Nxe7 {[%clk 0:01:52]}  Qxe7 {[%clk 0:02:20]} 17. Nf5 {[%clk 0:01:47]}  Bxf5 {[%clk 0:02:19]} 18. exf5 {[%clk 0:01:48]}  O-O {[%clk 0:02:16]} 19. Bc4 {[%clk 0:01:43]}  e4 {[%clk 0:02:06]} 20. Qh5 {[%clk 0:01:13]}  h6 {[%clk 0:02:05]} 21. O-O {[%clk 0:00:53]}  b5 {[%clk 0:01:51]} 22. Bb3 {[%clk 0:00:45]}  b4 {[%clk 0:01:49]} 23. Rad1 {[%clk 0:00:33]}  bxc3 {[%clk 0:01:48]} 24. bxc3 {[%clk 0:00:34]}  Rb5 {[%clk 0:01:48]} 25. Qg4 {[%clk 0:00:28]}  e3 {[%clk 0:01:42]} 26. fxe3 {[%clk 0:00:16]}  Re5 {[%clk 0:01:41]} 27. Rfe1 {[%clk 0:00:14]}  Bxe3+ {[%clk 0:01:39]} 28. Kh1 {[%clk 0:00:13]}  Re4 {[%clk 0:01:37]} 29. Rxe3 {[%clk 0:00:09]}  Rxe3 {[%clk 0:01:36]} 30. Rf1 {[%clk 0:00:07]}  Re1 {[%clk 0:01:35]} 31. Kg1 {[%clk 0:00:07]}  Qe3+ {[%clk 0:01:34]} 0-1


[Site "https://www.chess.com"]